bitfinex-derivatives/quotes_SOLF0:USTF0_20260104
["timestamp","ask_amount","ask_price","bid_price","bid_amount"]
[1767565620671,89.84953192,134.14,134.04,106.19913192]
[1767565620875,89.82953192,134.17,134.08,2.0460628]
[1767565621072,89.82953192,134.17,134.09,0.33653088]
[1767565621269,1.70953192,134.15,134.07,0.33653088]
[1767565621577,8.42173192,134.15,134.08,6.7152]
[1767565621777,8.42173192,134.15,134.07,0.33653088]
[1767565622278,8.42173192,134.15,134.07,7.05233088]
[1767565622877,8.42173192,134.15,134.08,7.05183088]
[1767565623479,1.70953192,134.15,134.08,7.05183088]
[1767565625485,1.70953192,134.13,134.06,7.05253088]
[1767565628087,6.7125,134.14,134.06,7.05253088]
[1767565628290,1.70953192,134.13,134.06,7.05253088]
[1767565632193,8.42253192,134.13,134.06,7.05253088]
[1767565636398,5.45008564,134.12,134.06,7.05253088]
[1767565636591,5.45008564,134.11,134.06,7.05253088]
[1767565636789,8.42253192,134.13,134.06,7.05253088]
[1767565636990,5.45008564,134.12,134.06,7.05253088]
[1767565637295,5.45008564,134.11,134.06,7.05253088]
[1767565637498,8.42253192,134.13,134.06,7.05253088]
[1767565637688,5.45240027,134.12,134.06,7.05253088]
[1767565637890,5.45240027,134.11,134.06,7.05253088]
[1767565638199,8.42253192,134.13,134.06,7.05253088]
[1767565638396,5.45247418,134.12,134.06,7.05253088]
[1767565638699,5.45247418,134.11,134.06,7.05253088]
[1767565638898,8.42253192,134.13,134.06,7.05253088]
[1767565639096,5.45247418,134.12,134.06,7.05253088]
[1767565639303,5.45247418,134.11,134.06,7.05253088]
[1767565639602,5.45247418,134.1,134.06,7.05253088]
[1767565639800,5.45247418,134.09,134.06,7.05253088]
[1767565640003,8.42253192,134.13,134.06,7.05253088]
[1767565640203,5.87487344,134.12,134.06,7.05253088]
[1767565640403,5.87487344,134.11,134.06,7.05253088]
[1767565640604,5.87487344,134.1,134.06,7.05253088]
[1767565640905,5.87487344,134.09,134.06,7.05253088]
[1767565641103,8.42253192,134.13,134.06,7.05253088]
[1767565641305,5.87506198,134.12,134.06,7.05253088]
[1767565641605,5.87506198,134.11,134.06,7.05253088]
[1767565641797,5.87506198,134.1,134.06,7.05253088]
[1767565641997,5.87506198,134.09,134.06,7.05253088]
[1767565642202,8.42253192,134.13,134.06,7.05253088]
[1767565642403,5.87491451,134.12,134.06,7.05253088]
[1767565642603,5.87491451,134.11,134.06,7.05253088]
[1767565642804,5.87491451,134.1,134.06,7.05253088]
[1767565643002,1.451e-05,134.09,134.06,7.05253088]
[1767565643203,8.42253192,134.13,134.06,7.05253088]
[1767565644507,8.42183192,134.15,134.07,0.33653088]
[1767565644706,2.22112206,134.14,134.07,0.33653088]
[1767565644907,8.42183192,134.15,134.07,0.33653088]
[1767565645107,8.93352206,134.14,134.07,0.33653088]
[1767565645308,6.7124,134.14,134.07,0.33653088]
[1767565648805,6.7124,134.14,134.07,7.05233088]
[1767565651213,6.7124,134.14,134.07,0.33653088]
[1767565651406,6.7124,134.14,134.05,8.7502073]
[1767565651912,6.7124,134.14,134.06,0.32427538]
[1767565652411,6.7124,134.14,134.06,7.04057538]
[1767565654917,5.92924059,134.13,134.06,7.04057538]
[1767565655117,5.92924059,134.12,134.06,7.04057538]
[1767565655316,5.92924059,134.11,134.06,7.04057538]
[1767565655522,5.92924059,134.1,134.06,7.04057538]
[1767565655718,5.92924059,134.09,134.06,7.04057538]
[1767565655912,6.713,134.13,134.06,7.04057538]
[1767565656106,5.92924148,134.12,134.06,7.04057538]
[1767565656310,5.92921023,134.11,134.06,7.04057538]
[1767565656510,5.92921023,134.1,134.06,7.04057538]
[1767565656712,5.92921023,134.09,134.06,7.04057538]
[1767565656912,6.713,134.13,134.06,7.04057538]
[1767565657112,5.92925155,134.12,134.06,7.04057538]
[1767565657312,5.92925155,134.11,134.06,7.04057538]
[1767565657518,5.92925155,134.1,134.06,7.04057538]
[1767565657820,5.92925155,134.09,134.06,7.04057538]
[1767565658118,6.713,134.13,134.06,7.04057538]
[1767565658317,5.92925049,134.12,134.06,7.04057538]
[1767565658616,5.92925049,134.11,134.06,7.04057538]
[1767565658818,5.92925049,134.1,134.06,7.04057538]
[1767565659017,5.92925049,134.09,134.06,7.04057538]
[1767565659208,6.713,134.13,134.06,7.04057538]
[1767565659412,5.92933744,134.12,134.06,7.04057538]
[1767565659612,5.92933744,134.11,134.06,7.04057538]
[1767565659812,5.92933744,134.1,134.06,7.04057538]
[1767565660013,5.92933744,134.09,134.06,7.04057538]
[1767565660219,6.713,134.13,134.06,7.04057538]
[1767565660421,5.929385,134.12,134.06,7.04057538]
[1767565660618,5.929385,134.11,134.06,7.04057538]
[1767565660823,5.929385,134.1,134.06,7.04057538]
[1767565661021,5.929385,134.09,134.06,7.04057538]
[1767565661321,6.713,134.13,134.06,7.04057538]
[1767565661522,5.92944339,134.12,134.06,7.04057538]
[1767565661820,5.92944339,134.11,134.06,7.04057538]
[1767565662021,5.92944339,134.1,134.06,7.04057538]
[1767565662216,5.92944339,134.09,134.06,7.04057538]
[1767565662416,6.713,134.13,134.06,7.04057538]
[1767565662616,5.92954159,134.12,134.06,7.04057538]
[1767565662919,5.92954159,134.11,134.06,7.04057538]
[1767565663117,5.92954159,134.1,134.06,7.04057538]
[1767565663322,5.92954159,134.09,134.06,7.04057538]
[1767565663522,6.713,134.13,134.06,7.04057538]
[1767565663723,5.92965284,134.12,134.06,7.04057538]
[1767565663923,5.92965284,134.11,134.06,7.04057538]
[1767565664125,5.92965284,134.1,134.06,7.04057538]
[1767565664325,5.92965284,134.09,134.06,7.04057538]
[1767565664526,6.713,134.13,134.06,7.04057538]
[1767565664727,5.92977779,134.12,134.07,0.31745594]
[1767565665025,5.92977779,134.11,134.07,0.31745594]
[1767565665228,5.92977779,134.1,134.07,0.31745594]
[1767565665428,7.779e-05,134.09,134.07,0.31745594]
[1767565665730,6.713,134.13,134.07,0.31745594]
[1767565677338,5.90265772,134.12,134.07,0.31745594]
[1767565677538,5.90265772,134.11,134.07,0.31745594]
[1767565677738,5.90265772,134.1,134.07,0.31745594]
[1767565677931,5.90265772,134.09,134.07,0.31745594]
[1767565678130,5.772e-05,134.08,134.07,0.31745594]
[1767565678838,6.713,134.13,134.07,0.31745594]
[1767565682837,20.50692869,134.15,134.08,0.31685774]
[1767565683045,6.7121,134.15,134.08,0.31685774]
[1767565684544,20.50612869,134.17,134.09,0.31685774]
[1767565684745,6.7113,134.17,134.09,0.31685774]
[1767565688945,6.7114,134.16,134.09,0.31685774]
[1767565690051,5.86468207,134.15,134.09,0.31685774]
[1767565690251,5.86468207,134.14,134.09,0.31685774]
[1767565690548,5.86468207,134.13,134.09,0.31685774]
[1767565690745,5.86468207,134.12,134.09,0.31685774]
[1767565691050,6.7114,134.16,134.09,0.31685774]
[1767565691242,5.86325873,134.15,134.09,0.31685774]
[1767565691443,5.86325873,134.14,134.09,0.31685774]
[1767565691643,5.86325873,134.13,134.09,0.31685774]
[1767565691850,5.86325873,134.12,134.09,0.31685774]
[1767565692037,6.7121,134.15,134.09,0.31685774]
[1767565692236,5.86261774,134.14,134.09,0.31685774]
[1767565692440,5.86261774,134.13,134.09,0.31685774]
[1767565692643,5.86261774,134.12,134.08,7.03215774]
[1767565692842,6.7121,134.15,134.08,7.03215774]
[1767565693142,5.86250799,134.14,134.08,7.03215774]
[1767565693344,5.86250799,134.13,134.08,7.03215774]
[1767565693551,5.86250799,134.12,134.08,7.03215774]
[1767565693851,6.7121,134.15,134.08,7.03215774]
[1767565694048,5.86200498,134.14,134.08,7.03215774]
[1767565694247,5.86200498,134.13,134.08,7.03215774]
[1767565694448,5.86200498,134.12,134.08,7.03215774]
[1767565694648,6.7121,134.15,134.08,7.03215774]
[1767565694951,5.86155705,134.14,134.08,7.03215774]
[1767565695144,5.86155705,134.13,134.08,7.03215774]
[1767565695442,5.86155705,134.12,134.08,7.03215774]
[1767565695645,6.7121,134.15,134.08,7.03215774]
[1767565695846,5.86116065,134.14,134.08,7.03215774]
[1767565696051,5.86116065,134.13,134.08,7.03215774]
[1767565696247,5.86116065,134.12,134.08,7.03215774]
[1767565696447,6.7113,134.17,134.09,0.31685774]
[1767565696651,5.86075054,134.16,134.09,0.31685774]
[1767565696950,5.86075054,134.15,134.09,0.31685774]
[1767565697144,5.86075054,134.14,134.09,0.31685774]
[1767565697348,6.7113,134.17,134.09,0.31685774]
[1767565697349,5.86075054,134.13,134.09,0.31685774]
[1767565697650,6.7113,134.17,134.09,0.31685774]
[1767565697849,5.86022675,134.16,134.09,0.31685774]
[1767565698047,5.86022675,134.15,134.09,0.31685774]
[1767565698247,5.86022675,134.14,134.09,7.03165774]
[1767565698447,5.86022675,134.13,134.09,7.03165774]
[1767565698650,6.7113,134.17,134.09,7.03165774]
[1767565698841,5.85977969,134.16,134.09,7.03165774]
[1767565699042,5.85977969,134.15,134.09,7.03165774]
[1767565699242,5.85977969,134.14,134.09,7.03165774]
[1767565699439,5.85977969,134.13,134.09,7.03165774]
[1767565699643,6.7113,134.17,134.09,7.03165774]
[1767565699839,5.84894886,134.16,134.1,0.31685774]
[1767565700052,5.84894886,134.15,134.1,0.31685774]
[1767565700353,5.84894886,134.14,134.1,0.31685774]
[1767565700552,5.84894886,134.13,134.1,0.31685774]
[1767565700746,6.7113,134.17,134.1,0.31685774]
[1767565700954,5.84860799,134.16,134.1,0.31685774]
[1767565701253,5.84860799,134.15,134.1,0.31685774]
[1767565701450,5.84860799,134.14,134.1,0.31685774]
[1767565701648,5.84860799,134.13,134.1,0.31685774]
[1767565701849,6.7113,134.17,134.1,0.31685774]
[1767565702151,5.84831838,134.16,134.1,0.31685774]
[1767565702352,5.84831838,134.15,134.1,0.31685774]
[1767565702555,5.84831838,134.14,134.1,0.31685774]
[1767565702752,5.84831838,134.13,134.1,0.31685774]
[1767565703053,6.7113,134.17,134.1,0.31685774]
[1767565703252,5.84792065,134.16,134.1,0.31685774]
[1767565703451,5.84792065,134.15,134.1,0.31685774]
[1767565703651,5.84792065,134.14,134.1,0.31685774]
[1767565703854,6.7113,134.17,134.1,0.31685774]
[1767565705451,9.38127685,134.19,134.11,0.31685774]
[1767565705652,94.8102,134.19,134.11,0.31685774]
[1767565706550,6.7105,134.18,134.11,7.03055774]
[1767565714466,6.7105,134.18,134.11,0.31685774]
[1767565715266,6.711,134.17,134.11,0.31685774]
[1767565715866,5.81695504,134.16,134.11,0.31685774]
[1767565716166,5.81695504,134.15,134.11,0.31685774]
[1767565716465,6.711,134.17,134.11,0.31685774]
[1767565716672,5.81705445,134.16,134.11,0.31685774]
[1767565716970,5.81705445,134.15,134.11,0.31685774]
[1767565717265,6.711,134.17,134.11,0.31685774]
[1767565717458,5.81724048,134.16,134.11,0.31685774]
[1767565717656,5.81724048,134.15,134.11,0.31685774]
[1767565717858,6.711,134.17,134.11,0.31685774]
[1767565718158,5.81724048,134.16,134.11,0.31685774]
[1767565718358,5.81724048,134.15,134.11,0.31685774]
[1767565718558,6.711,134.17,134.11,0.31685774]
[1767565718767,5.81760363,134.16,134.11,0.31685774]
[1767565718967,5.81760363,134.15,134.11,0.31685774]
[1767565719165,6.711,134.17,134.11,0.31685774]
[1767565719464,5.81797659,134.16,134.11,0.31685774]
[1767565719666,5.81797659,134.15,134.11,0.31685774]
[1767565719864,6.711,134.17,134.11,0.31685774]
[1767565720162,5.81797659,134.16,134.11,0.31685774]
[1767565720361,5.81797659,134.15,134.11,0.31685774]
[1767565720561,6.711,134.17,134.11,0.31685774]
[1767565720766,5.81852081,134.16,134.11,0.31685774]
[1767565721064,5.81852081,134.15,134.11,0.31685774]
[1767565721268,6.711,134.17,134.11,0.31685774]
[1767565721459,5.81919168,134.16,134.11,0.31685774]
[1767565721658,5.81919168,134.15,134.11,0.31685774]
[1767565721860,6.711,134.17,134.11,0.31685774]
[1767565722065,5.81919168,134.16,134.11,0.31685774]
[1767565722261,5.81919168,134.15,134.11,0.31685774]
[1767565722461,6.711,134.17,134.11,0.31685774]
[1767565722666,5.81999624,134.16,134.11,0.31685774]
[1767565722864,5.81999624,134.15,134.11,0.31685774]
[1767565723165,6.711,134.17,134.11,0.31685774]
[1767565723364,88.1,134.19,134.11,0.31685774]
[1767565723365,5.81995068,134.16,134.11,0.31685774]
[1767565723556,5.81995068,134.15,134.11,0.31685774]
[1767565723757,94.8103,134.19,134.11,0.31685774]
[1767565723968,5.8208268,134.18,134.11,0.31685774]
[1767565724162,5.8208268,134.17,134.11,0.31685774]
[1767565724363,5.8208268,134.16,134.11,7.03055774]
[1767565724563,2.67107685,134.2,134.12,0.32016254]
[1767565724774,6.7093,134.21,134.12,0.32016254]
[1767565724968,6.7093,134.21,134.14,6.7122]
[1767565725167,6.7093,134.21,134.14,7.03236254]
[1767565736677,5.7649071,134.2,134.14,7.03236254]
[1767565736868,5.7649071,134.19,134.14,7.03236254]
[1767565737068,6.7093,134.21,134.14,7.03236254]
[1767565737277,5.76448314,134.2,134.14,7.03236254]
[1767565737476,5.76448314,134.19,134.14,7.03236254]
[1767565737667,6.7093,134.21,134.14,7.03236254]
[1767565737869,5.76448542,134.2,134.14,7.03236254]
[1767565738173,5.76448542,134.19,134.14,7.03236254]
[1767565738471,6.7093,134.21,134.14,7.03236254]
[1767565738667,5.76418126,134.2,134.14,7.03236254]
[1767565738864,5.76418126,134.19,134.14,7.03236254]
[1767565739068,6.7093,134.21,134.14,7.03236254]
[1767565739280,5.76401489,134.2,134.14,7.03236254]
[1767565739478,5.76401489,134.19,134.14,7.03236254]
[1767565739669,6.7093,134.21,134.14,7.03236254]
[1767565739871,5.76401767,134.2,134.14,7.03236254]
[1767565740077,5.76401767,134.19,134.14,7.03236254]
[1767565740379,6.7093,134.21,134.14,7.03236254]
[1767565740684,5.7642923,134.2,134.14,7.03236254]
[1767565740974,5.7642923,134.19,134.14,7.03236254]
[1767565741175,6.7093,134.21,134.14,7.03236254]
[1767565741374,5.76461547,134.2,134.14,7.03236254]
[1767565741577,5.76461547,134.19,134.14,7.03236254]
[1767565741778,6.7093,134.21,134.14,7.03236254]
[1767565741972,5.76428554,134.2,134.14,7.03236254]
[1767565742173,5.76428554,134.19,134.14,7.03236254]
[1767565742472,6.7093,134.21,134.14,7.03236254]
[1767565742673,5.76419661,134.2,134.14,7.03236254]
[1767565742982,5.76419661,134.19,134.14,7.03236254]
[1767565743184,6.7093,134.21,134.14,7.03236254]
[1767565743382,5.76420944,134.2,134.14,7.03236254]
[1767565743678,5.76420944,134.19,134.14,7.03236254]
[1767565743886,6.7093,134.21,134.14,7.03236254]
[1767565744080,5.76420944,134.2,134.14,7.03236254]
[1767565744280,5.76420944,134.19,134.14,7.03236254]
[1767565744578,6.7093,134.21,134.14,7.03236254]
[1767565744771,5.76431883,134.2,134.14,7.03236254]
[1767565744972,5.76431883,134.19,134.14,7.03236254]
[1767565745171,6.7093,134.21,134.14,7.03236254]
[1767565745373,5.76451783,134.2,134.14,7.03236254]
[1767565745592,5.76451783,134.19,134.14,7.03236254]
[1767565745792,6.7093,134.21,134.14,7.03236254]
[1767565745995,5.76451783,134.2,134.14,7.03236254]
[1767565746192,5.76451783,134.19,134.14,7.03236254]
[1767565746393,6.7093,134.21,134.14,7.03236254]
[1767565746595,5.76481312,134.2,134.14,7.03236254]
[1767565746792,5.76481312,134.19,134.14,7.03236254]
[1767565747093,6.7093,134.21,134.14,7.03236254]
[1767565747291,5.76520813,134.2,134.14,7.03236254]
[1767565747494,5.76520813,134.19,134.14,7.03236254]
[1767565747694,6.7093,134.21,134.14,7.03236254]
[1767565747993,5.76520813,134.2,134.14,7.03236254]
[1767565748198,5.76520813,134.19,134.14,7.03236254]
[1767565748386,6.7093,134.21,134.14,7.03236254]
[1767565748581,5.76570984,134.2,134.14,7.03236254]
[1767565748787,5.76570984,134.19,134.14,7.03236254]
[1767565748987,6.7093,134.21,134.14,7.03236254]
[1767565749199,5.76570984,134.2,134.14,7.03236254]
[1767565749394,5.76570984,134.19,134.14,7.03236254]
[1767565749693,6.7093,134.21,134.14,7.03236254]
[1767565749894,5.76632545,134.2,134.14,7.03236254]
[1767565750095,5.76632545,134.19,134.14,7.03236254]
[1767565750295,6.7093,134.21,134.14,7.03236254]
[1767565750593,5.76706475,134.2,134.14,7.03236254]
[1767565750795,5.76706475,134.19,134.14,7.03236254]
[1767565751101,6.7093,134.21,134.14,7.03236254]
[1767565751402,5.76730421,134.2,134.14,7.03236254]
[1767565751601,5.76730421,134.19,134.14,7.03236254]
[1767565751796,6.7093,134.21,134.14,7.03236254]
[1767565752104,5.76730421,134.2,134.14,7.03236254]
[1767565752304,5.76730421,134.19,134.14,7.03236254]
[1767565752601,6.7093,134.21,134.14,7.03236254]
[1767565752802,5.76760295,134.2,134.14,7.03236254]
[1767565753002,5.76760295,134.19,134.14,7.03236254]
[1767565753203,6.7093,134.21,134.14,7.03236254]
[1767565753401,5.76780446,134.2,134.14,7.03236254]
[1767565753597,5.76780446,134.19,134.14,7.03236254]
[1767565753797,6.7093,134.21,134.14,7.03236254]
[1767565754097,5.7678056,134.2,134.14,7.03236254]
[1767565754297,5.7678056,134.19,134.14,7.03236254]
[1767565754498,6.7093,134.21,134.14,7.03236254]
[1767565754699,5.76806067,134.2,134.14,7.03236254]
[1767565754995,5.76806067,134.19,134.14,7.03236254]
[1767565755186,6.7093,134.21,134.14,7.03236254]
[1767565755387,5.76837252,134.2,134.14,7.03236254]
[1767565755605,5.76837252,134.19,134.14,7.03236254]
[1767565755899,6.7093,134.21,134.14,7.03236254]
[1767565756102,5.76837252,134.2,134.14,7.03236254]
[1767565756300,5.76837252,134.19,134.14,7.03236254]
[1767565756501,6.7093,134.21,134.14,7.03236254]
[1767565756702,5.76874208,134.2,134.14,7.03236254]
[1767565757001,5.76874208,134.19,134.14,7.03236254]
[1767565757198,6.7093,134.21,134.14,7.03236254]
[1767565757396,5.76917612,134.2,134.14,7.03236254]
[1767565757602,5.76917612,134.19,134.14,7.03236254]
[1767565757803,6.7093,134.21,134.14,7.03236254]
[1767565757994,5.76917498,134.2,134.14,7.03236254]
[1767565758195,5.76917498,134.19,134.14,7.03236254]
[1767565758397,6.7093,134.21,134.14,7.03236254]
[1767565758596,5.76967156,134.2,134.14,7.03236254]
[1767565758799,5.76967156,134.19,134.14,7.03236254]
[1767565759000,6.7093,134.21,134.14,7.03236254]
[1767565759200,5.76967156,134.2,134.14,7.03236254]
[1767565759400,5.76967156,134.19,134.14,7.03236254]
[1767565759602,6.7093,134.21,134.14,7.03236254]
[1767565759803,5.76790061,134.2,134.14,7.03236254]
[1767565760001,5.76790061,134.19,134.14,7.03236254]
[1767565760205,6.7093,134.21,134.14,7.03236254]
[1767565760401,5.76855025,134.2,134.14,7.03236254]
[1767565760601,5.76855025,134.19,134.14,7.03236254]
[1767565760904,6.7093,134.21,134.14,7.03236254]
[1767565761106,5.76855025,134.2,134.14,7.03236254]
[1767565761411,5.76855025,134.19,134.14,7.03236254]
[1767565761708,6.7093,134.21,134.14,7.03236254]
[1767565761907,5.76928861,134.2,134.14,7.03236254]
[1767565762102,5.76928861,134.19,134.14,7.03236254]
[1767565762306,6.7093,134.21,134.14,7.03236254]
[1767565762508,5.77012786,134.2,134.14,7.03236254]
[1767565762803,5.77012786,134.19,134.14,7.03236254]
[1767565763006,6.7093,134.21,134.14,7.03236254]
[1767565763311,5.77012786,134.2,134.14,7.03236254]
[1767565763612,5.77012786,134.19,134.14,7.03236254]
[1767565763806,5.77012786,134.18,134.14,7.03236254]
[1767565764007,6.7093,134.21,134.14,7.03236254]
[1767565764205,5.77209791,134.2,134.14,7.03236254]
[1767565764413,5.77209791,134.19,134.14,7.03236254]
[1767565764599,5.77209791,134.18,134.14,7.03236254]
[1767565764804,6.7093,134.21,134.14,7.03236254]
[1767565765103,5.77209791,134.2,134.14,7.03236254]
[1767565765311,5.77209791,134.19,134.14,7.03236254]
[1767565765512,5.77209791,134.18,134.14,7.03236254]
[1767565765710,6.7093,134.21,134.14,7.03236254]
[1767565765903,5.77326793,134.2,134.14,7.03236254]
[1767565766106,5.77326793,134.19,134.14,7.03236254]
[1767565766305,5.77326793,134.18,134.14,7.03236254]
[1767565766509,6.7093,134.21,134.14,7.03236254]
[1767565766712,5.77466089,134.2,134.14,7.03236254]
[1767565766918,5.77466089,134.19,134.14,7.03236254]
[1767565767105,5.77466089,134.18,134.14,7.03236254]
[1767565767411,6.7093,134.21,134.14,7.03236254]
[1767565767606,5.77635004,134.2,134.14,7.03236254]
[1767565767805,5.77635004,134.19,134.14,7.03236254]
[1767565768006,5.77635004,134.18,134.14,7.03236254]
[1767565768207,6.7093,134.21,134.14,7.03236254]
[1767565768409,5.77849845,134.2,134.14,7.03236254]
[1767565768598,5.77849845,134.19,134.14,7.03236254]
[1767565768805,5.77849845,134.18,134.14,7.03236254]
[1767565769004,6.7093,134.21,134.14,7.03236254]
[1767565769207,5.7817244,134.2,134.14,7.03236254]
[1767565769412,5.7817244,134.19,134.14,7.03236254]
[1767565769713,5.7817244,134.18,134.14,7.03236254]
[1767565769913,5.7817244,134.17,134.14,7.03236254]
[1767565770213,6.7093,134.21,134.14,7.03236254]
[1767565770413,5.78341632,134.2,134.14,7.03236254]
[1767565770605,5.78341632,134.19,134.14,7.03236254]
[1767565770805,5.78341632,134.18,134.14,7.03236254]
[1767565771009,5.78341632,134.17,134.14,7.03236254]
[1767565771207,6.7093,134.21,134.14,7.03236254]
[1767565771408,5.78363803,134.2,134.14,7.03236254]
[1767565771612,5.78363803,134.19,134.14,7.03236254]
[1767565771808,5.78363803,134.18,134.14,7.03236254]
[1767565772010,5.78363803,134.17,134.14,7.03236254]
[1767565772211,6.7093,134.21,134.14,7.03236254]
[1767565772411,5.78384055,134.2,134.14,7.03236254]
[1767565772610,5.78384055,134.19,134.14,7.03236254]
[1767565772910,5.78384055,134.18,134.14,7.03236254]
[1767565773107,5.78384055,134.17,134.14,7.03236254]
[1767565773308,6.7093,134.21,134.14,7.03236254]
[1767565773508,5.78407693,134.2,134.14,7.03236254]
[1767565773807,5.78407693,134.19,134.14,7.03236254]
[1767565774010,5.78407693,134.18,134.14,7.03236254]
[1767565774209,5.78407693,134.17,134.14,7.03236254]
[1767565774416,6.7093,134.21,134.14,7.03236254]
[1767565774614,5.78431205,134.2,134.14,7.03236254]
[1767565774803,5.78431205,134.19,134.14,7.03236254]
[1767565775007,5.78431205,134.18,134.14,7.03236254]
[1767565775207,6.7093,134.21,134.14,7.03236254]
[1767565775208,5.78431205,134.17,134.14,7.03236254]
[1767565775415,6.7093,134.21,134.14,7.03236254]
[1767565775716,5.78459731,134.2,134.14,7.03236254]
[1767565775914,5.78459731,134.19,134.14,7.03236254]
[1767565776115,5.78459731,134.18,134.14,7.03236254]
[1767565776316,6.7093,134.21,134.14,7.03236254]
[1767565776519,5.78416156,134.2,134.14,7.03236254]
[1767565776714,5.78416156,134.19,134.14,7.03236254]
[1767565776914,5.78416156,134.18,134.14,7.03236254]
[1767565777115,6.7093,134.21,134.14,7.03236254]
[1767565777422,5.78406627,134.2,134.14,7.03236254]
[1767565777612,5.78406627,134.19,134.14,7.03236254]
[1767565777810,5.78406627,134.18,134.14,7.03236254]
[1767565778010,6.7093,134.21,134.14,7.03236254]
[1767565778210,5.78406627,134.2,134.14,7.03236254]
[1767565778413,5.78406627,134.19,134.14,7.03236254]
[1767565778612,5.78406627,134.18,134.14,7.03236254]
[1767565778812,6.7093,134.21,134.14,7.03236254]
[1767565779013,5.78408677,134.2,134.14,7.03236254]
[1767565779210,5.78408677,134.19,134.14,7.03236254]
[1767565779410,5.78408677,134.18,134.14,7.03236254]
[1767565779614,6.7093,134.21,134.14,7.03236254]
[1767565779914,5.78415147,134.2,134.14,7.03236254]
[1767565780212,5.78415147,134.19,134.14,7.03236254]
[1767565780512,5.78415147,134.18,134.14,7.03236254]
[1767565780712,6.7093,134.21,134.14,7.03236254]
[1767565780910,5.78396597,134.2,134.14,7.03236254]
[1767565781110,5.78396597,134.19,134.14,7.03236254]
[1767565781312,5.78396597,134.18,134.14,7.03236254]
[1767565781513,6.7093,134.21,134.14,7.03236254]
[1767565781714,5.78380466,134.2,134.14,7.03236254]
[1767565781915,5.78380466,134.19,134.14,7.03236254]
[1767565782119,5.78380466,134.18,134.14,7.03236254]
[1767565782319,6.7093,134.21,134.14,7.03236254]
[1767565782511,5.78366345,134.2,134.14,7.03236254]
[1767565782707,5.78366345,134.19,134.14,7.03236254]
[1767565782910,5.78366345,134.18,134.14,7.03236254]
[1767565783210,6.7093,134.21,134.14,7.03236254]
[1767565783410,5.78354337,134.2,134.14,7.03236254]
[1767565783711,5.78354337,134.19,134.14,7.03236254]
[1767565784007,5.78354337,134.18,134.14,7.03236254]
[1767565784207,6.7093,134.21,134.14,7.03236254]
[1767565784417,5.78343491,134.2,134.14,7.03236254]
[1767565784615,5.78343491,134.19,134.14,7.03236254]
[1767565784817,5.78343491,134.18,134.14,7.03236254]
[1767565785012,6.7093,134.21,134.14,7.03236254]
[1767565785214,5.78336004,134.2,134.14,7.03236254]
[1767565785513,5.78336004,134.19,134.14,7.03236254]
[1767565785713,5.78336004,134.18,134.14,7.03236254]
[1767565785914,6.7093,134.21,134.14,7.03236254]
[1767565786114,5.78335775,134.2,134.14,7.03236254]
[1767565786315,5.78335775,134.19,134.14,7.03236254]
[1767565786515,5.78335775,134.18,134.14,7.03236254]
[1767565786715,6.7093,134.21,134.14,7.03236254]
[1767565786922,5.78326779,134.2,134.14,7.03236254]
[1767565787218,5.78326779,134.19,134.14,7.03236254]
[1767565787419,5.78326779,134.18,134.14,7.03236254]
[1767565787718,6.7093,134.21,134.14,7.03236254]
[1767565787913,5.7831878,134.2,134.14,7.03236254]
[1767565788113,5.7831878,134.19,134.14,7.03236254]
[1767565788310,5.7831878,134.18,134.14,7.03236254]
[1767565788509,6.7093,134.21,134.14,7.03236254]
[1767565788711,5.78311694,134.2,134.14,7.03236254]
[1767565788920,5.78311694,134.19,134.14,7.03236254]
[1767565789119,5.78311694,134.18,134.14,7.03236254]
[1767565789320,6.7093,134.21,134.14,7.03236254]
[1767565789514,5.78305453,134.2,134.14,7.03236254]
[1767565789710,5.78305453,134.19,134.14,7.03236254]
[1767565789914,5.78305453,134.18,134.15,0.32317326]
[1767565790109,6.7093,134.21,134.15,0.32317326]
[1767565790320,5.77704126,134.2,134.15,0.32317326]
[1767565790521,5.77704126,134.19,134.15,0.32317326]
[1767565790715,5.77704126,134.18,134.15,0.32317326]
[1767565790916,6.7093,134.21,134.15,0.32317326]
[1767565791117,5.7770424,134.2,134.15,0.32317326]
[1767565791316,5.7770424,134.19,134.15,0.32317326]
[1767565791516,5.7770424,134.18,134.15,0.32317326]
[1767565791718,6.7093,134.21,134.15,0.32317326]
[1767565791922,5.77696221,134.2,134.15,0.32317326]
[1767565792122,5.77696221,134.19,134.15,0.32317326]
[1767565792322,5.77696221,134.18,134.15,0.32317326]
[1767565792620,6.7093,134.21,134.15,0.32317326]
[1767565792821,5.77689251,134.2,134.15,0.32317326]
[1767565793020,5.77689251,134.19,134.15,0.32317326]
[1767565793228,5.77689251,134.18,134.15,0.32317326]
[1767565793425,6.7093,134.21,134.15,0.32317326]
[1767565793614,5.7768326,134.2,134.15,0.32317326]
[1767565793814,5.7768326,134.19,134.15,0.32317326]
[1767565794020,5.7768326,134.18,134.15,0.32317326]
[1767565794327,6.7093,134.21,134.15,0.32317326]
[1767565794520,5.77678195,134.2,134.15,0.32317326]
[1767565794724,5.77678195,134.19,134.15,0.32317326]